bitfinex/quotes_ETHUSD_20251012
["timestamp","ask_amount","ask_price","bid_price","bid_amount"]
[1760236191403,5.0566154,3746.7,3746.5,0.002]
[1760236191608,2.5204,3746.6,3746.5,0.002]
[1760236191837,3.26948663,3746.6,3746.5,0.002]
[1760236192041,2.5204,3746.6,3746.5,0.002]
[1760236192242,3.26948663,3746.6,3746.5,0.002]
[1760236192759,4.72188663,3746.6,3746.5,0.002]
[1760236193250,2.0528,3746.6,3746.5,0.002]
[1760236193562,1.92,3746.6,3746.5,1.0842]
[1760236193739,1.92,3746.6,3746.5,1.21958]
[1760236194245,1.92,3746.6,3746.5,0.77098]
[1760236194444,1.92,3746.6,3746.5,0.6356]
[1760236194636,5.04618663,3746.6,3746.5,0.002]
[1760236194840,1.92,3746.6,3746.5,0.002]
[1760236195040,4.58908663,3746.6,3746.5,0.002]
[1760236195440,5.04618663,3746.6,3746.5,0.002]
[1760236196610,1.92,3746.6,3746.5,0.002]
[1760236198046,4.58908663,3746.6,3746.5,0.002]
[1760236198624,5.04618663,3746.6,3746.5,0.002]
[1760236198828,1.92,3746.6,3746.5,0.002]
[1760236199552,4.58908663,3746.6,3746.5,0.002]
[1760236200717,0.001,3746.9,3746.6,0.6336]
[1760236200955,0.001,3746.9,3746.6,1.47623577]
[1760236201270,0.001,3746.9,3746.5,0.002]
[1760236201466,1.92,3746.8,3746.5,0.002]
[1760236201636,3.12611634,3746.7,3746.5,0.002]
[1760236201953,1.921,3746.9,3746.5,0.002]
[1760236202257,0.001,3746.9,3746.5,0.002]
[1760236202462,0.001,3746.9,3746.5,0.6356]
[1760236202761,0.001,3746.9,3746.5,3.71221588]
[1760236202959,0.001,3746.9,3746.7,0.6336]
[1760236204566,0.001,3746.9,3746.6,3.30261614]
[1760236204860,0.001,3746.9,3746.6,0.6336]
[1760236205022,0.001,3746.9,3746.8,3.30254416]
[1760236205219,0.001,3746.9,3746.8,4.07756692]
[1760236205422,0.001,3746.9,3746.8,4.52616692]
[1760236205725,0.001,3746.9,3746.8,4.39336692]
[1760236211083,0.001,3747.3,3747.2,3.30225926]
[1760236211462,0.001,3747.3,3747.2,3.75085926]
[1760236211786,0.001,3747.3,3747.2,6.31282042]
[1760236213381,0.87536959,3750.1,3747.7,0.6336]
[1760236213690,0.4571,3750.9,3749.8,0.6336]
[1760236213850,1.92,3750.5,3749.6,0.6336]
[1760236214053,1.92,3750.6,3749.9,0.6336]
[1760236214279,2.66610191,3750.8,3749.9,0.6336]
[1760236214480,2.66639768,3750.4,3749.8,0.6336]
[1760236215078,1.92,3750.4,3749.7,2.66686583]
[1760236215256,2.6662476,3750.6,3749.8,0.6336]
[1760236215454,1.92,3750.2,3749.6,0.6336]
[1760236215660,1.92,3750.2,3749.6,0.7664]
[1760236215880,1.92,3750.2,3749.6,3.43334813]
[1760236216078,0.1328,3750.3,3749.6,0.7664]
[1760236216378,0.1328,3750.5,3750.0,0.6336]
[1760236216990,1.92,3750.4,3750.0,0.6336]
[1760236217890,2.0528,3750.5,3750.0,0.6336]
[1760236218098,0.1328,3750.5,3750.0,0.6336]
[1760236218253,1.92,3750.3,3750.0,0.6336]
[1760236218899,2.6664721,3750.3,3750.0,0.6336]
[1760236219183,0.4571,3750.2,3750.0,0.6336]
[1760236219487,0.4571,3750.1,3750.0,0.6336]
[1760236220651,0.1328,3750.5,3750.0,0.6336]
[1760236221293,0.1328,3750.5,3750.0,3.30026245]
[1760236221498,2.0528,3750.5,3750.0,0.6336]
[1760236221717,0.1338,3750.5,3750.0,0.6336]
[1760236221884,0.001,3750.5,3750.2,0.6336]
[1760236222511,0.001,3750.5,3750.2,3.30010741]
[1760236222907,0.001,3750.5,3750.2,0.6336]
[1760236223687,0.4631,3750.4,3750.2,0.6336]
[1760236223874,2.3831,3750.3,3750.0,0.6336]
[1760236224079,0.4631,3750.2,3750.0,0.6336]
[1760236224282,0.4631,3750.1,3750.0,0.6336]
[1760236224786,2.80012864,3750.5,3750.0,0.6336]
[1760236224996,0.5969,3750.5,3750.0,0.6336]
[1760236225201,3.26323906,3750.5,3750.0,0.6336]
[1760236225705,0.4631,3750.4,3750.0,0.6336]
[1760236226735,2.80013906,3750.5,3746.5,0.002]
[1760236226736,0.4631,3750.3,3746.5,0.002]
[1760236227014,2.6674394,3749.0,3748.2,2.66794599]
[1760236227225,3.36266096,3749.1,3748.0,2.8037641]
[1760236227584,0.6953,3749.1,3747.7,2.66823593]
[1760236227970,1.92,3748.7,3746.8,0.002]
[1760236228232,2.66769589,3748.6,3746.8,0.002]
[1760236228433,2.66750267,3748.9,3746.8,0.002]
[1760236228434,1.92,3748.8,3747.5,0.6336]
[1760236228613,1.92,3748.6,3747.4,0.4414]
[1760236228941,2.6679611,3748.2,3747.5,0.6336]
[1760236229213,5.05075808,3748.7,3747.7,3.30187772]
[1760236229419,5.05072909,3748.7,3747.5,2.66837725]
[1760236229607,1.92,3748.3,3747.6,2.66834673]
[1760236229810,1.92,3748.4,3747.4,3.10989868]
[1760236230005,1.92,3748.4,3747.6,2.66835865]
[1760236230225,2.139599,3749.5,3748.5,0.6336]
[1760236230422,1.92,3748.9,3748.5,0.6336]
[1760236230590,4.5874762,3748.9,3748.1,3.30159547]
[1760236231000,0.6953,3749.6,3748.3,0.6336]
[1760236231320,0.41834191,3749.5,3748.5,0.6336]
[1760236231491,2.66645335,3750.3,3749.3,0.6336]
[1760236231710,0.4631,3751.0,3749.5,0.6336]
[1760236231908,0.4631,3751.0,3749.8,0.6336]
[1760236232123,2.66624991,3750.6,3749.6,3.30054152]
[1760236232324,2.66618265,3750.7,3749.7,0.6336]
[1760236232551,2.66640218,3750.4,3749.7,0.6336]
[1760236232843,2.66645752,3750.3,3749.6,0.6336]
[1760236233168,3.1304551,3750.5,3749.4,0.6336]
[1760236233312,2.66668364,3750.0,3749.4,0.6336]
[1760236233650,2.6670934,3749.4,3748.6,2.66765411]
[1760236233944,2.66717571,3749.3,3748.5,2.66771872]
[1760236234144,1.92,3749.3,3748.4,2.66778683]
[1760236234439,0.2322,3749.9,3748.5,1.075]
[1760236234746,1.92,3749.8,3748.9,0.6336]
[1760236234910,1.92,3749.4,3748.6,0.6336]
[1760236235115,1.92,3749.4,3748.8,0.6336]
[1760236235646,1.92,3749.5,3748.9,0.6336]
[1760236235815,0.4631,3749.4,3748.9,0.6336]
[1760236236015,0.4631,3749.4,3748.5,2.6677263]
[1760236236016,2.3831,3749.3,3748.6,0.6336]
[1760236236438,2.3831,3749.3,3748.7,0.6336]
[1760236236644,2.5159,3749.3,3748.7,0.6336]
[1760236236844,2.0528,3749.3,3748.7,3.30117503]
[1760236237054,2.0528,3749.3,3748.7,0.6336]
[1760236237416,2.79997485,3749.3,3748.7,0.6336]
[1760236238247,5.96412,3749.1,3747.3,0.4414]
[1760236238544,0.1328,3748.3,3747.7,0.1328]
[1760236238913,0.41832179,3749.2,3748.3,0.6336]
[1760236238914,0.1328,3748.9,3748.3,0.6336]
[1760236239114,0.1328,3748.9,3748.3,3.30147446]
[1760236239754,0.1328,3748.9,3748.3,0.6336]
[1760236240059,2.0528,3748.9,3748.3,0.6336]
[1760236240255,2.66693476,3749.7,3748.3,0.6336]
[1760236240256,0.1328,3749.1,3748.6,0.6336]
[1760236240470,0.001,3750.5,3749.4,0.6336]
[1760236240772,0.001,3750.1,3749.4,0.6336]
[1760236240917,4.58760691,3750.1,3749.4,0.6336]
[1760236241122,0.001,3750.1,3749.5,0.6336]
[1760236241359,0.001,3750.1,3750.0,0.6336]
[1760236242361,0.001,3750.1,3750.0,3.76086666]
[1760236245149,0.41807485,3752.2,3751.4,2.66564935]
[1760236245353,0.41807485,3752.2,3751.5,0.6336]
[1760236245553,2.66481905,3752.6,3751.7,0.6336]
[1760236245738,2.66498216,3752.4,3751.5,3.12615769]
[1760236245937,2.66498216,3752.4,3751.1,2.8486378]
[1760236245938,0.014281,3752.7,3752.2,0.6336]
[1760236246153,0.014281,3752.7,3752.6,2.66481905]
[1760236246354,0.014281,3752.7,3752.2,0.6336]
[1760236246355,0.014281,3752.7,3752.2,0.4606]
[1760236246673,0.014281,3752.7,3752.3,3.29863144]
[1760236246895,0.014281,3752.7,3752.6,3.29841905]
[1760236247259,0.014281,3752.7,3752.6,3.75901905]
[1760236248672,1e-08,3752.7,3752.6,3.75901905]
[1760236250286,1e-08,3752.7,3752.6,1.0942]
[1760236250590,1e-08,3752.7,3752.6,3.89181905]
[1760236250805,1e-08,3752.7,3752.6,0.1328]
[1760236251866,1e-08,3752.7,3752.6,3.43121905]
[1760236252164,1e-08,3752.7,3752.6,3.89181905]
[1760236252369,1e-08,3752.7,3752.6,4.5474967]
[1760236253399,1e-08,3752.7,3752.6,1.227]
[1760236253601,1e-08,3752.7,3752.6,0.7664]
[1760236253761,1e-08,3752.7,3752.6,3.87581905]
[1760236254208,1e-08,3752.7,3752.6,0.7664]
[1760236254712,1e-08,3752.7,3752.6,3.87581905]
[1760236254909,1e-08,3752.7,3752.6,4.52989586]
[1760236256265,1.92,3754.3,3752.6,4.52989586]
[1760236256266,0.1328,3754.5,3753.9,0.6336]
[1760236256802,0.13953111,3755.6,3754.4,0.1348]
[1760236256974,0.13953111,3755.6,3754.6,0.6336]
[1760236257176,0.4504,3756.5,3754.6,0.6336]
[1760236257502,3.20092503,3758.7,3754.4,0.1348]
[1760236257503,0.4504,3757.4,3754.8,0.6336]
[1760236257664,0.4504,3757.4,3755.0,3.29671584]
[1760236258038,2.66135545,3757.5,3756.3,2.66213391]
[1760236258186,2.66072392,3758.4,3756.3,2.66213391]
[1760236258187,2.66028725,3759.0,3756.5,2.66205244]
[1760236258362,2.66094039,3758.1,3756.6,0.6336]
[1760236258562,5.37943192,3758.0,3756.8,0.6336]
[1760236258770,2.530721,3757.9,3756.8,0.6336]
[1760236258986,2.66099249,3758.0,3756.8,3.29542608]
[1760236259215,20.546345,3758.4,3756.8,0.4446]
[1760236259423,0.001,3757.5,3757.2,0.6336]
[1760236259831,0.001,3757.5,3757.3,1.0782]
[1760236260124,0.001,3757.5,3757.3,0.6336]
[1760236260280,0.001,3757.5,3757.4,0.6336]
[1760236260485,0.001,3757.5,3757.4,3.2950148]
[1760236260914,0.001,3757.5,3756.4,0.6336]
[1760236261115,0.001,3757.5,3757.4,3.7396148]
[1760236261312,0.001,3757.5,3757.4,4.37972828]
[1760236261622,0.56999295,3759.5,3758.7,0.6336]
[1760236261823,0.56999295,3759.5,3758.6,0.6336]
[1760236262190,0.56999295,3759.5,3758.8,0.6336]
[1760236262718,0.56999295,3759.5,3758.6,0.6336]
[1760236263218,0.56999295,3759.5,3758.7,0.6336]
[1760236263631,0.56999295,3759.5,3758.9,0.6336]
[1760236263791,0.56999295,3759.5,3759.4,3.29359893]
[1760236263991,0.56999295,3759.5,3759.4,3.73819893]
[1760236265427,0.56999295,3759.5,3759.4,0.6336]
[1760236266196,1.02039295,3759.5,3758.3,0.4446]
[1760236266423,0.56999295,3759.5,3758.3,0.4446]
[1760236266593,0.70279295,3759.5,3759.0,0.6336]
[1760236267330,2.3704,3759.4,3758.0,0.1587]
[1760236267513,1.92,3758.8,3758.0,0.1587]
[1760236267824,1.92,3758.7,3757.6,0.4446]
[1760236268040,14.83211908,3758.9,3757.1,0.4446]
[1760236268191,0.4504,3758.7,3757.1,3.1062201]
[1760236268391,0.4504,3758.7,3757.1,0.4446]
[1760236268592,1.92,3758.1,3757.1,3.10622038]
[1760236268831,2.66090672,3758.2,3756.6,2.66197626]
[1760236268832,1.92,3757.6,3756.6,2.66197626]
[1760236268992,0.4504,3758.2,3756.5,0.4446]
[1760236268993,2.3704,3758.2,3756.5,0.4446]
[1760236269346,2.3704,3758.2,3756.2,0.134]
[1760236269347,0.4504,3758.2,3756.2,0.134]
[1760236269523,2.66008327,3759.3,3756.6,0.4446]
[1760236269524,2.6605651,3758.6,3756.6,0.4446]
[1760236269692,1.92,3758.5,3757.7,0.6336]
[1760236269886,13.36251908,3759.4,3757.7,0.6336]
[1760236270088,1.92,3759.2,3757.7,0.6336]
[1760236270292,1.92,3759.2,3758.3,0.6336]
[1760236270493,2.66010718,3759.3,3758.3,3.29432096]
[1760236270713,2.66017196,3759.2,3758.3,3.29432096]
[1760236270890,1.92,3759.3,3758.2,0.6336]
[1760236271106,1.92,3759.0,3757.3,0.6336]
[1760236271303,0.4504,3759.2,3758.2,0.6336]
[1760236271514,1.92,3759.3,3757.4,0.4446]
[1760236271515,2.66031007,3759.0,3758.0,2.66096456]
[1760236271713,4.58036269,3758.9,3758.1,0.6336]
[1760236271917,2.3704,3759.3,3757.8,0.6336]
[1760236272119,1.92,3758.5,3757.8,0.6336]
[1760236272305,1.92,3758.5,3757.7,0.6336]
[1760236272504,15.85251203,3759.5,3758.1,0.6336]
[1760236272825,1.92,3758.9,3757.8,0.6336]
[1760236273004,4.58035952,3758.9,3757.9,0.6336]
[1760236273223,1.92,3758.7,3757.9,0.6336]
[1760236273424,1.92,3757.8,3756.9,2.66170885]
[1760236273770,0.6865,3757.9,3756.2,0.5786]
[1760236274065,1.92,3757.0,3756.3,2.66217934]
[1760236274221,1.92,3757.1,3756.3,2.66217934]
[1760236274417,1.92,3757.5,3755.7,0.4446]
[1760236274614,1.92,3757.6,3756.8,3.29542067]
[1760236274813,1.92,3758.2,3757.1,0.6336]
[1760236275120,1.92,3757.4,3756.8,0.6336]
[1760236275469,2.3704,3757.5,3756.6,0.6336]
[1760236275614,1.92,3757.7,3756.9,2.66171403]
[1760236275811,0.2361,3757.6,3756.2,0.6336]
[1760236276014,1.92,3756.9,3755.7,3.10719621]
[1760236276249,1.92,3756.9,3755.7,0.4446]
[1760236276547,1.92,3756.7,3755.7,0.4446]
[1760236276746,1.92,3756.7,3755.8,2.66254859]
[1760236277054,2.66224934,3756.3,3755.0,0.4446]
[1760236277352,0.1328,3755.7,3755.0,0.1328]
[1760236277556,2.0528,3755.7,3755.0,0.1328]
[1760236277849,1.92,3755.5,3755.0,0.1328]
[1760236278022,2.66276294,3755.5,3755.1,0.6336]
[1760236278230,0.4504,3755.4,3754.1,2.66375014]
[1760236278435,0.4504,3755.4,3753.9,0.4446]
[1760236278436,0.1328,3755.3,3754.7,0.1328]
[1760236279552,2.66327718,3754.8,3753.6,0.4446]
[1760236279757,2.66334152,3754.7,3753.8,2.6639006]
[1760236279965,0.4504,3754.9,3753.1,0.4446]
[1760236280258,1.92,3755.1,3753.2,2.66439305]
[1760236280465,1.92,3754.7,3753.5,2.66411953]
[1760236280689,1.92,3754.7,3753.4,2.66425107]
[1760236280690,2.66353999,3754.5,3753.4,2.66425107]
[1760236280872,2.66339839,3754.7,3753.3,0.75549931]
[1760236281077,1.92,3754.8,3753.3,0.4446]
[1760236281248,1.92,3754.2,3753.1,2.66445228]
[1760236281589,2.663709,3754.2,3753.3,2.66431602]
[1760236281793,1.92,3754.0,3752.9,0.4446]
[1760236281969,0.4504,3754.5,3753.4,2.66418342]
[1760236282142,2.66383716,3754.0,3753.1,2.66446133]
[1760236282479,1.92,3753.7,3752.7,2.66468307]
[1760236282682,2.1561,3753.9,3753.1,2.66445004]
[1760236282846,2.1561,3753.9,3752.6,0.002]
[1760236283047,2.66396717,3753.8,3752.8,2.66461808]
[1760236283394,1.92,3753.6,3752.6,0.002]
[1760236283604,0.2361,3753.9,3752.6,0.002]
[1760236283605,0.4644,3753.7,3752.6,0.002]
[1760236283891,1.92,3753.4,3752.6,0.002]
[1760236284105,2.3844,3753.5,3752.6,0.002]
[1760236284257,1.92,3753.2,3752.6,0.002]
[1760236284459,2.66436491,3753.3,3752.6,0.002]
[1760236284663,0.4644,3753.1,3752.6,0.002]
[1760236284890,2.3844,3753.1,3752.6,0.002]
[1760236285186,1.92,3753.3,3752.6,0.002]
[1760236285368,1.92,3753.2,3752.6,0.002]
[1760236285572,0.2361,3753.9,3753.0,0.6336]
[1760236285756,1.92,3753.9,3753.0,0.6336]
[1760236285965,2.66425564,3753.4,3752.6,0.6356]
[1760236286256,1.92,3753.1,3752.6,0.002]
[1760236286465,2.66453503,3753.0,3752.6,0.002]
[1760236286665,1.92,3752.8,3752.6,0.002]
[1760236287056,0.4646,3753.0,3752.6,0.002]
[1760236287057,2.66453576,3753.0,3752.6,0.002]
[1760236287252,1.92,3752.9,3752.6,0.002]
[1760236287657,0.88249156,3753.6,3752.6,0.002]
[1760236287869,1.0880023,3753.6,3752.6,0.002]
[1760236288043,0.41789156,3753.6,3752.6,0.002]
[1760236288257,1.92,3753.9,3752.6,0.6356]
[1760236288453,1.92,3753.9,3752.9,0.6336]
[1760236288454,1.92,3753.7,3752.9,0.6336]
[1760236288658,13.13341908,3754.6,3753.5,0.6336]
[1760236288882,1.92,3754.1,3753.5,0.6336]
[1760236289094,1.92,3754.5,3753.3,3.29789239]
[1760236289296,1.92,3754.5,3753.7,0.6336]
[1760236289461,2.66354635,3754.4,3753.7,0.6336]
[1760236289660,0.1328,3753.9,3753.5,3.29776088]
[1760236290097,0.1328,3753.9,3753.5,0.6336]
[1760236291007,0.5974,3753.9,3753.3,0.1328]
[1760236291158,1.92,3753.5,3752.7,0.6336]
[1760236291360,2.66402976,3753.8,3752.8,0.1328]
[1760236291566,5.260122,3753.5,3752.6,0.002]
[1760236291773,0.1328,3752.9,3752.6,0.002]
[1760236291986,1.92,3752.7,3752.6,0.002]
[1760236292458,1.92,3752.7,3752.6,0.1348]
[1760236292661,1.92,3752.7,3752.6,0.7684]
[1760236293194,0.1328,3753.5,3752.7,0.6336]
[1760236293492,0.4646,3753.7,3752.6,0.002]
[1760236293493,0.1328,3752.9,3752.6,0.002]
[1760236293703,1.92,3752.8,3752.6,0.002]
[1760236293914,2.5174,3752.9,3752.6,0.002]
[1760236294195,0.1328,3752.9,3752.6,0.002]
[1760236294395,0.1328,3753.2,3752.8,0.6336]
[1760236294596,0.1328,3753.2,3753.0,0.6336]
[1760236294800,0.1328,3753.4,3752.9,0.6336]
[1760236295102,0.4646,3753.7,3752.6,0.002]
[1760236295103,2.66457217,3753.0,3752.6,0.002]
[1760236295268,0.1328,3752.9,3752.6,0.002]
[1760236296286,4.58474804,3752.7,3752.6,0.002]
[1760236296792,5.04934804,3752.7,3752.6,0.002]
[1760236297121,15.66128904,3752.7,3752.6,0.002]
[1760236298028,5.97098611,3752.3,3752.2,0.002]
[1760236298223,21.20210519,3752.3,3752.2,0.002]
[1760236298385,21.66670519,3752.3,3752.2,0.002]
[1760236299184,2.3846,3752.3,3752.2,0.002]
[1760236299498,1.92,3752.3,3752.2,0.002]
[1760236299808,5.04963211,3752.3,3752.2,0.002]
[1760236300120,2.3846,3752.3,3752.2,0.002]
[1760236300341,15.29671908,3752.3,3752.2,0.002]
[1760236300630,4.58531623,3751.9,3751.8,0.002]
[1760236300832,11.79862323,3751.9,3751.8,0.002]
[1760236300987,5.27121623,3751.9,3751.8,0.002]
[1760236301190,2.3846,3751.9,3751.8,0.002]
[1760236301595,1.92,3751.9,3751.8,0.002]
[1760236301952,2.3846,3751.9,3751.8,0.002]
[1760236302333,5.04991623,3751.9,3751.8,0.002]
[1760236302533,1.92,3751.9,3751.8,0.002]
[1760236302827,2.3846,3751.9,3751.8,0.002]
[1760236303036,1.92,3751.9,3751.8,0.002]
[1760236303804,2.0528,3751.9,3751.8,0.6356]
[1760236304690,2.4987,3751.9,3751.8,0.002]
[1760236304910,7.97183223,3751.9,3751.8,0.002]
[1760236305310,5.16401623,3751.9,3751.8,0.002]
[1760236305513,2.4987,3751.9,3751.8,0.002]
[1760236305709,1.92,3751.9,3751.8,0.002]
[1760236305925,2.0528,3751.9,3751.8,0.002]
[1760236306610,5.16401623,3751.9,3751.8,0.002]
[1760236306806,2.4987,3751.9,3751.8,0.002]
[1760236307240,2.0528,3751.9,3751.8,0.002]
[1760236308014,5.16401623,3751.9,3751.8,0.002]
[1760236308216,7.56864123,3751.9,3751.8,0.002]
[1760236308759,8.55305323,3751.9,3751.8,0.002]
[1760236309128,13.65399323,3751.9,3751.8,0.002]
[1760236309646,8.35415923,3751.9,3751.8,0.002]
[1760236310251,1.92,3750.9,3750.1,2.66656781]
[1760236310561,1.92,3750.6,3749.5,2.66699718]
[1760236310801,1.92,3750.6,3748.8,0.1348]
[1760236310802,0.4459,3750.5,3749.7,2.66686451]
[1760236310920,0.4459,3750.5,3749.8,2.66680454]
[1760236311120,1.92,3750.7,3749.3,2.66709375]
[1760236311464,2.66609008,3750.9,3749.4,0.4404]
[1760236311631,2.66609008,3750.9,3750.1,0.6336]
[1760236311835,2.66609008,3750.9,3750.1,3.30017825]
[1760236312141,2.66609008,3750.9,3746.6,1.91764564]
[1760236312142,1.92,3750.5,3749.2,0.4404]
[1760236312348,2.3659,3750.8,3749.2,0.4404]
[1760236312549,5.03200125,3750.8,3750.0,0.6336]
[1760236312750,0.4459,3750.8,3750.0,0.6336]
[1760236313052,2.66624321,3750.6,3749.9,0.6336]
[1760236313270,2.3659,3750.8,3749.9,0.6336]
[1760236313548,0.41814064,3751.1,3750.1,0.6336]
[1760236313769,0.41814064,3751.1,3750.4,0.6336]
[1760236313770,2.33814064,3751.1,3750.4,0.6336]
[1760236313972,0.41814064,3751.1,3750.3,2.66645335]
[1760236314173,0.4687,3751.4,3750.5,0.6336]
[1760236314460,0.4687,3751.4,3750.5,3.29989122]
[1760236314629,0.4687,3751.3,3750.5,0.6336]
[1760236314835,1.92,3751.0,3750.3,3.30004515]
[1760236315351,1.92,3751.1,3750.5,0.6336]
[1760236315554,0.4687,3751.2,3750.4,0.6336]
[1760236315756,3.13451643,3751.2,3750.4,3.29998009]
[1760236316055,1.92,3751.3,3750.7,0.6336]
[1760236316555,1.92,3751.3,3750.8,0.6336]
[1760236316758,1.92,3751.3,3750.1,0.4547]
[1760236316759,2.66603587,3750.9,3749.3,2.66716453]
[1760236316958,2.66637073,3750.5,3749.3,2.66716453]
[1760236317158,0.4687,3750.4,3748.8,0.5895]
[1760236317327,0.4687,3750.4,3749.0,0.6336]
[1760236317524,0.4687,3750.9,3749.8,2.66679921]
[1760236317760,12.78442219,3752.3,3749.6,0.4547]
[1760236317924,0.4687,3751.4,3750.5,2.66625245]
[1760236318119,1.92,3751.2,3750.5,2.66625245]
[1760236318425,2.66581439,3751.2,3750.4,2.66636531]
[1760236318819,2.66600851,3751.0,3750.3,0.6336]
[1760236319018,0.4687,3751.1,3750.1,0.6336]
[1760236319250,0.4687,3751.1,3750.5,0.6336]
[1760236319443,2.66554471,3751.6,3750.5,3.29988538]
[1760236319644,2.3887,3751.5,3749.2,2.66723567]
[1760236319959,1.92,3751.1,3750.0,0.6336]
[1760236320159,0.4687,3751.4,3750.5,2.66628773]
[1760236320160,0.1328,3750.6,3750.5,2.66628773]
[1760236320467,0.1328,3750.6,3750.4,0.6336]
[1760236320629,0.1328,3751.0,3750.4,0.7664]
[1760236320829,0.1328,3751.0,3750.8,0.6336]
[1760236321259,0.1328,3751.0,3750.7,0.6336]
[1760236321741,0.1328,3751.0,3750.9,2.66602682]
[1760236322139,0.1328,3751.0,3750.6,0.6336]
[1760236322140,0.4687,3751.0,3750.6,0.6336]
[1760236322339,0.4687,3750.9,3750.4,0.6336]
[1760236322539,0.4687,3750.9,3749.4,0.4547]
[1760236322758,1.92,3750.8,3748.9,0.4547]
[1760236323079,1.92,3750.3,3749.5,0.6336]
[1760236323242,3.13517957,3750.3,3749.4,2.66704167]
[1760236323579,3.13517957,3750.3,3749.5,0.6336]
[1760236323872,0.4687,3750.7,3748.9,0.4547]
[1760236324035,1.92,3750.6,3749.5,2.6669708]
[1760236324364,2.3887,3751.3,3749.9,0.6336]
[1760236324577,2.3887,3751.3,3749.7,0.6336]
[1760236324578,0.4687,3751.3,3749.7,3.30048001]
[1760236324729,0.4687,3751.6,3749.9,0.6336]
[1760236324925,0.41913299,3751.8,3750.2,3.30012445]
[1760236325160,0.001,3751.8,3751.7,3.29905832]
[1760236325355,0.001,3751.8,3751.7,0.6336]
[1760236325756,2.6656152,3751.5,3750.7,0.6336]
[1760236325939,0.4697,3751.8,3750.7,0.6336]
[1760236325940,1.921,3751.8,3750.7,0.6336]
[1760236326138,0.001,3751.8,3750.4,0.6336]
[1760236326336,0.001,3751.8,3751.3,2.66570656]
[1760236326569,0.001,3751.8,3750.6,0.6336]
[1760236326743,0.001,3751.8,3751.7,3.29905832]
[1760236327329,0.4697,3751.8,3750.4,0.4547]
[1760236327642,0.4697,3751.8,3751.1,2.66581722]
[1760236327832,0.4697,3751.8,3751.2,2.66580441]
[1760236328034,0.001,3751.8,3750.9,0.6336]
[1760236328395,0.001,3751.8,3751.7,3.29905832]
[1760236328559,0.001,3751.8,3750.8,0.4547]
[1760236328734,0.4687,3751.7,3751.1,0.6336]
[1760236329472,0.001,3751.8,3751.0,0.6336]
[1760236329645,0.001,3751.8,3751.5,2.66554581]
[1760236330035,0.001,3751.8,3751.7,3.29905832]
[1760236330534,0.001,3751.8,3751.7,0.6336]
[1760236330726,0.001,3751.8,3751.7,3.29905832]
[1760236331150,0.001,3751.8,3751.7,4.3502237]
[1760236331734,0.001,3751.8,3751.7,0.6336]
[1760236332665,0.4697,3751.8,3751.2,2.66580492]
[1760236332870,0.1328,3751.4,3750.9,0.1328]
[1760236333034,0.1328,3751.4,3750.9,2.79881442]
[1760236333239,0.1328,3751.4,3751.2,2.66581283]
[1760236333479,0.4687,3751.3,3748.7,4.58754895]
[1760236333678,3.13445968,3751.3,3750.3,2.66645335]
[1760236333878,3.13445968,3751.3,3750.2,0.1328]
[1760236333879,0.1328,3750.9,3750.2,0.1328]
[1760236334078,1.92,3751.7,3751.0,2.66592313]
[1760236334285,0.1328,3751.4,3751.1,0.6336]
[1760236334586,0.1328,3751.4,3750.9,0.6336]
[1760236334786,0.1328,3751.4,3751.2,2.66578652]
[1760236335088,0.1328,3751.4,3751.1,0.6336]
[1760236335586,0.1328,3751.4,3751.2,0.6336]
[1760236335776,0.1328,3751.4,3751.2,3.2993991]
[1760236336590,0.001,3751.8,3751.7,2.66545832]
[1760236336805,0.001,3751.8,3751.7,0.6336]
[1760236337156,0.001,3751.8,3751.7,3.29905832]
[1760236338481,0.001,3751.8,3751.7,4.23043978]
[1760236338984,0.001,3751.8,3751.7,3.43185832]
[1760236339566,0.001,3751.8,3750.9,2.66596368]
[1760236339567,0.4697,3751.8,3750.6,2.66624006]
[1760236339891,0.4697,3751.8,3750.4,0.4547]
[1760236340094,2.6655838,3751.6,3750.7,2.66611508]
[1760236340409,1.92,3751.4,3749.8,0.4567]
[1760236340704,1.92,3751.2,3750.1,0.002]
[1760236340866,1.92,3750.4,3750.1,0.002]
[1760236341104,1.92,3750.8,3750.1,0.002]
[1760236341302,0.4687,3750.3,3750.1,0.002]
[1760236341485,4.58652445,3750.2,3750.1,0.002]
[1760236341681,5.05522445,3750.2,3750.1,0.002]
[1760236343202,9.47602759,3750.2,3750.1,0.002]
[1760236343535,6.46284314,3750.2,3750.1,0.002]
[1760236343696,2.80698314,3750.2,3750.1,0.002]
[1760236343897,5.47350759,3750.2,3750.1,0.002]
[1760236344329,12.32213759,3750.2,3750.1,0.002]
[1760236344601,2.80698314,3750.2,3750.1,0.002]
[1760236344804,2.33828314,3750.2,3750.1,0.002]
[1760236345004,1.92,3750.2,3750.1,0.002]
[1760236345217,1.92,3750.2,3750.1,3.30219555]
[1760236345543,2.66560042,3751.5,3750.5,2.66625981]
[1760236345713,0.451,3751.6,3750.6,3.29982476]
[1760236346046,0.41815899,3751.4,3750.7,0.6336]
[1760236346228,0.451,3751.3,3750.1,0.002]
[1760236346405,0.41815899,3751.4,3750.9,0.6336]
[1760236346605,0.452,3752.2,3750.9,0.6336]
[1760236346806,0.452,3752.2,3751.4,0.6336]
[1760236347040,3.11710971,3752.2,3751.4,3.29921442]
[1760236347249,1.92,3752.8,3751.4,3.29924993]
[1760236347545,2.66511847,3752.2,3751.5,0.6336]